[Event "Championnat d'Europe de Blitz"]
[Date "2024.12.09"]
[White "Dardha, Daniel"]
[Black "Larkin, Vladyslav"]
[WhiteElo "2639"]
[BlackElo "2449"]
[Round "3.15"]
[Result "0-1"]
[TimeControl "180+2"]

1. d4 {[%clk 00:03:02]} d6 {[%clk 00:03:04]} 2. Nf3 {[%emt 00:00:02] [%clk
00:03:01]} Bg4 {[%emt 00:00:02] [%clk 00:03:05]} 3. e3 {[%emt 00:00:02] [%clk
00:03:01]} c6 {[%emt 00:00:02] [%clk 00:03:05]} 4. Be2 {[%emt 00:00:02] [%clk
00:03:01]} Nd7 {[%emt 00:00:01] [%clk 00:03:06]} 5. h3 {[%emt 00:00:02] [%clk
00:03:01]} Bh5 {[%emt 00:00:02] [%clk 00:03:06]} 6. c4 {[%emt 00:00:02] [%clk
00:03:00]} Ngf6 {[%emt 00:00:01] [%clk 00:03:07]} 7. Nc3 {[%emt 00:00:01] [%clk
00:03:01]} e5 {[%emt 00:00:03] [%clk 00:03:06]} 8. g4 {[%emt 00:00:10] [%clk
00:02:53]} Bg6 {[%emt 00:00:03] [%clk 00:03:06]} 9. Nh4 {[%emt 00:00:04] [%clk
00:02:51]} Be4 {[%emt 00:00:37] [%clk 00:02:30]} 10. Nxe4 {[%emt 00:00:25] [%clk
00:02:28]} Nxe4 {[%emt 00:00:01] [%clk 00:02:31]} 11. Nf3 {[%emt 00:00:02] [%clk
00:02:28]} Be7 {[%emt 00:00:10] [%clk 00:02:24]} 12. Qc2 {[%emt 00:00:02] [%clk
00:02:28]} Nef6 {[%emt 00:00:14] [%clk 00:02:12]} 13. g5 {[%emt 00:00:12] [%clk
00:02:17]} Nh5 {[%emt 00:00:25] [%clk 00:01:50]} 14. h4 {[%emt 00:00:01] [%clk
00:02:17]} g6 {[%emt 00:00:03] [%clk 00:01:50]} 15. Bd2 {[%emt 00:00:02] [%clk
00:02:16]} Qc7 {[%emt 00:00:03] [%clk 00:01:49]} 16. O-O-O {[%emt 00:00:15]
[%clk 00:02:03]} O-O-O {[%emt 00:00:02] [%clk 00:01:49]} 17. Kb1 {[%emt
00:00:15] [%clk 00:01:50]} Kb8 {[%emt 00:00:03] [%clk 00:01:49]} 18. Bc3 {[%emt
00:00:02] [%clk 00:01:49]} Rhe8 {[%emt 00:00:13] [%clk 00:01:38]} 19. c5 {[%emt
00:00:07] [%clk 00:01:44]} e4 {[%emt 00:00:30] [%clk 00:01:10]} 20. cxd6 {[%emt
00:00:18] [%clk 00:01:28]} Bxd6 {[%emt 00:00:01] [%clk 00:01:11]} 21. Nd2 {[%emt
00:00:01] [%clk 00:01:28]} f5 {[%emt 00:00:01] [%clk 00:01:13]} 22. Nc4 {[%emt
00:00:06] [%clk 00:01:24]} Nb6 {[%emt 00:00:01] [%clk 00:01:13]} 23. Ba5 {[%emt
00:00:03] [%clk 00:01:23]} Ng7 {[%emt 00:00:30] [%clk 00:00:46]} 24. Qb3 {[%emt
00:00:05] [%clk 00:01:20]} Qe7 {[%emt 00:00:05] [%clk 00:00:43]} 25. Bxb6 {[%emt
00:00:24] [%clk 00:00:58]} axb6 {[%emt 00:00:02] [%clk 00:00:43]} 26. Nxb6
{[%emt 00:00:01] [%clk 00:00:58]} Bc7 {[%emt 00:00:05] [%clk 00:00:40]} 27. Na4
{[%emt 00:00:01] [%clk 00:00:59]} Bd6 {[%emt 00:00:08] [%clk 00:00:34]} 28. Rc1
{[%emt 00:00:03] [%clk 00:00:59]} Qc7 {[%emt 00:00:17] [%clk 00:00:19]} 29. d5
{[%emt 00:00:06] [%clk 00:00:55]} c5 {[%emt 00:00:02] [%clk 00:00:19]} 30. Bb5
{[%emt 00:00:22] [%clk 00:00:34]} Re7 {[%emt 00:00:01] [%clk 00:00:21]} 31. Bc6
{[%emt 00:00:05] [%clk 00:00:31]} Qa5 {[%clk 00:00:22]} 32. Bb5 {[%emt 00:00:09]
[%clk 00:00:24]} Rc7 {[%emt 00:00:11] [%clk 00:00:13]} 33. Rc4 {[%emt 00:00:01]
[%clk 00:00:24]} Qd2 {[%emt 00:00:06] [%clk 00:00:09]} 34. Rc2 {[%emt 00:00:13]
[%clk 00:00:14]} Qa5 {[%emt 00:00:01] [%clk 00:00:10]} 35. Nc3 {[%emt 00:00:02]
[%clk 00:00:13]} Be5 {[%clk 00:00:12]} 36. Be2 {[%emt 00:00:05] [%clk 00:00:10]}
Bxc3 {[%emt 00:00:01] [%clk 00:00:13]} 37. Rxc3 {[%clk 00:00:11]} Ne8 {[%emt
00:00:01] [%clk 00:00:14]} 38. h5 {[%emt 00:00:01] [%clk 00:00:11]} Nd6 {[%emt
00:00:03] [%clk 00:00:13]} 39. hxg6 {[%emt 00:00:02] [%clk 00:00:11]} hxg6
{[%emt 00:00:01]} 40. Rh6 {[%clk 00:00:12]} Rg8 {[%clk 00:00:16]} 41. a3 {[%emt
00:00:03] [%clk 00:00:12]} Rcc8 {[%emt 00:00:07] [%clk 00:00:11]} 42. Rh7 {[%emt
00:00:02] [%clk 00:00:12]} Rc7 {[%clk 00:00:13]} 43. Rh1 {[%emt 00:00:03] [%clk
00:00:10]} Rcc8 {[%emt 00:00:02] [%clk 00:00:14]} 44. Ka2 {[%emt 00:00:04] [%clk
00:00:08]} Rc7 {[%clk 00:00:15]} 45. Rc2 {[%emt 00:00:01] [%clk 00:00:09]} Rgc8
{[%emt 00:00:01] [%clk 00:00:16]} 46. Rh6 {[%clk 00:00:10]} c4 {[%emt 00:00:01]
[%clk 00:00:17]} 47. Qc3 {[%clk 00:00:11]} Qxd5 {[%emt 00:00:02] [%clk
00:00:18]} 48. Rd2 {[%emt 00:00:04] [%clk 00:00:09]} Qe6 {[%emt 00:00:02] [%clk
00:00:17]} 49. Ka1 {[%emt 00:00:07] [%clk 00:00:05]} Nb5 {[%emt 00:00:01] [%clk
00:00:18]} 50. Qf6 {[%clk 00:00:06]} Qxf6 {[%emt 00:00:14] [%clk 00:00:06]} 51.
gxf6 {[%clk 00:00:07]} c3 {[%clk 00:00:08]} 52. bxc3 {[%emt 00:00:04] [%clk
00:00:05]} Nxc3 {[%clk 00:00:09]} 53. Rxg6 {[%emt 00:00:02] [%clk 00:00:05]} Rc6
{[%emt 00:00:05] [%clk 00:00:07]} 54. Rb2 {[%emt 00:00:03] [%clk 00:00:03]} Na4
{[%emt 00:00:01] [%clk 00:00:08]} 55. Rd2 {[%emt 00:00:02] [%clk 00:00:04]} Rb6
{[%emt 00:00:02] [%clk 00:00:08]} 56. Rg1 {[%emt 00:00:02] [%clk 00:00:04]} Rxf6
{[%emt 00:00:01] [%clk 00:00:09]} 57. Rb1 {[%emt 00:00:01] [%clk 00:00:04]} Nc3
{[%emt 00:00:02] [%clk 00:00:10]} 58. Rb4 {[%emt 00:00:01] [%clk 00:00:05]} Rfc6
{[%emt 00:00:01] [%clk 00:00:11]} 59. Kb2 {[%emt 00:00:01] [%clk 00:00:05]} Rc5
{[%emt 00:00:06] [%clk 00:00:08]} 60. Bh5 {[%emt 00:00:01] [%clk 00:00:06]} R8c7
{[%emt 00:00:01] [%clk 00:00:08]} 61. Be8 {[%emt 00:00:02] [%clk 00:00:07]} Nd5
{[%emt 00:00:01] [%clk 00:00:09]} 62. Rbd4 {[%emt 00:00:01] [%clk 00:00:07]} Nb6
{[%emt 00:00:01] [%clk 00:00:10]} 63. Ka2 {[%emt 00:00:03] [%clk 00:00:07]} Nc4
{[%emt 00:00:01] [%clk 00:00:11]} 64. Rc2 {[%emt 00:00:01] [%clk 00:00:08]} Ne5
{[%emt 00:00:01] [%clk 00:00:12]} 65. Rxc5 {[%emt 00:00:02] [%clk 00:00:08]}
Rxc5 {[%clk 00:00:14]} 66. Ba4 {[%emt 00:00:02] [%clk 00:00:07]} Nd3 {[%emt
00:00:01] [%clk 00:00:14]} 67. f4 {[%emt 00:00:03] [%clk 00:00:07]} Ka7 {[%emt
00:00:03] [%clk 00:00:14]} 68. Bb3 {[%emt 00:00:03] [%clk 00:00:05]} Nc1+ {[%emt
00:00:02] [%clk 00:00:13]} 69. Kb2 {[%emt 00:00:01] [%clk 00:00:07]} Nxb3 {[%clk
00:00:15]} 70. Kxb3 {[%clk 00:00:08]} Ka6 {[%emt 00:00:04] [%clk 00:00:13]} 71.
Kb4 {[%emt 00:00:01] [%clk 00:00:08]} Rb5+ {[%emt 00:00:02] [%clk 00:00:14]} 72.
Kc4 {[%emt 00:00:01] [%clk 00:00:09]} Ra5 {[%emt 00:00:03] [%clk 00:00:13]} 73.
Rd6+ {[%emt 00:00:06] [%clk 00:00:05]} b6 {[%emt 00:00:01] [%clk 00:00:14]} 74.
Kb3 {[%emt 00:00:02] [%clk 00:00:04]} Rb5+ {[%clk 00:00:15]} 75. Kc2 {[%emt
00:00:01] [%clk 00:00:05]} Rc5+ {[%emt 00:00:01] [%clk 00:00:17]} 76. Kd2 {[%clk
00:00:06]} Rb5 {[%clk 00:00:18]} 77. Rf6 {[%emt 00:00:01] [%clk 00:00:06]} Ka5
{[%emt 00:00:02] [%clk 00:00:19]} 78. Kc3 {[%emt 00:00:05] [%clk 00:00:03]} Ka4
{[%clk 00:00:20]} 79. Rf8 {[%clk 00:00:04]} Rc5+ {[%clk 00:00:22]} 80. Kb2
{[%emt 00:00:02] [%clk 00:00:05]} Rd5 {[%emt 00:00:02] [%clk 00:00:22]} 81. Ra8+
{[%emt 00:00:01] [%clk 00:00:05]} Kb5 {[%emt 00:00:01]} 82. Kc2 {[%emt 00:00:03]
[%clk 00:00:04]} Rd3 {[%emt 00:00:01] [%clk 00:00:25]} 83. Rf8 {[%emt 00:00:01]
[%clk 00:00:05]} Rxe3 {[%emt 00:00:02] [%clk 00:00:26]} 84. Rxf5+ {[%emt
00:00:01] [%clk 00:00:06]} Kc4 {[%clk 00:00:27]} 85. Re5 {[%emt 00:00:01] [%clk
00:00:07]} Kd4 {[%emt 00:00:01] [%clk 00:00:28]} 86. Re8 {[%emt 00:00:02] [%clk
00:00:06]} Rxa3 {[%emt 00:00:01] [%clk 00:00:29]} 87. f5 {[%emt 00:00:03] [%clk
00:00:05]} Rf3 {[%clk 00:00:30]} 88. Re6 {[%emt 00:00:04] [%clk 00:00:03]} b5
{[%emt 00:00:01] [%clk 00:00:32]} 89. f6 {[%emt 00:00:01] [%clk 00:00:04]} b4
{[%emt 00:00:01] [%clk 00:00:33]} 90. Rb6 {[%clk 00:00:05]} Rf2+ {[%emt
00:00:05] [%clk 00:00:31]} 91. Kb3 {[%emt 00:00:01] [%clk 00:00:06]} e3 {[%clk
00:00:32]} 92. Re6 {[%emt 00:00:05] [%clk 00:00:03]} Kd3 {[%emt 00:00:01] [%clk
00:00:33]} 93. Kxb4 {[%emt 00:00:01] [%clk 00:00:04]} e2 {[%emt 00:00:01] [%clk
00:00:34]} 94. Kc5 {[%emt 00:00:01] [%clk 00:00:05]} Rxf6 {[%emt 00:00:01] [%clk
00:00:35]} 95. Rxf6 {[%emt 00:00:01] [%clk 00:00:06]} e1=Q {[%emt 00:00:02]} 96.
Rd6+ {[%clk 00:00:07]} Kc3 {[%emt 00:00:01] [%clk 00:00:36]} 97. Kc6 {[%emt
00:00:02] [%clk 00:00:08]} Qe4+ {[%clk 00:00:37]} 98. Kb5 {[%emt 00:00:01] [%clk
00:00:08]} Qe5+ {[%emt 00:00:01] [%clk 00:00:38]} 99. Kc6 {[%clk 00:00:10]} Kc4
{[%emt 00:00:01] [%clk 00:00:40]} 100. Kd7 {[%emt 00:00:03] [%clk 00:00:09]} Kc5
{[%emt 00:00:01] [%clk 00:00:40]} 101. Re6 {[%emt 00:00:01] [%clk 00:00:10]} Qf5
{[%emt 00:00:01] [%clk 00:00:41]} 102. Ke7 {[%emt 00:00:03] [%clk 00:00:09]}
Qh7+ {[%clk 00:00:42]} 103. Kf6 {[%emt 00:00:01] [%clk 00:00:09]} Kd5 {[%emt
00:00:01] [%clk 00:00:44]} 104. Re5+ {[%clk 00:00:11]} Kd6 {[%clk 00:00:45]}
105. Re6+ {[%emt 00:00:01] [%clk 00:00:12]} Kd7 {[%clk 00:00:47]} 106. Re5
{[%emt 00:00:01] [%clk 00:00:13]} Qh6+ {[%emt 00:00:03] [%clk 00:00:46]} 107.
Kf5 {[%clk 00:00:14]} Kd6 {[%clk 00:00:47]} 108. Re4 {[%emt 00:00:02] [%clk
00:00:14]} Qh5+ {[%emt 00:00:04] [%clk 00:00:46]} 109. Kf4 {[%emt 00:00:03]
[%clk 00:00:12]} Kd5 {[%emt 00:00:01] [%clk 00:00:48]} 110. Re3 {[%clk
00:00:14]} Qh4+ {[%emt 00:00:02] [%clk 00:00:48]} 111. Kf5 {[%emt 00:00:02]
[%clk 00:00:14]} Qf2 {[%emt 00:00:01] [%clk 00:00:49]} 0-1

[Site "Europe Echecs"]

[Event "Championnat d'Europe de Blitz"]
[Date "2024.12.09"]
[White "Kilic, Eray"]
[Black "Kazakouski, Valery"]
[WhiteElo "2459"]
[BlackElo "2567"]
[Round "3.16"]
[Result "0-1"]
[TimeControl "180+2"]

1. d4 {[%emt 00:00:58] [%clk 00:03:02]} Nf6 {[%emt 00:00:03] [%clk 00:03:02]} 2.
Nc3 {[%emt 00:00:02] [%clk 00:03:03]} d5 {[%emt 00:00:02] [%clk 00:03:02]} 3.
Bf4 {[%clk 00:03:04]} c5 {[%emt 00:00:02] [%clk 00:03:03]} 4. e3 {[%emt
00:00:02] [%clk 00:03:04]} cxd4 {[%emt 00:00:03] [%clk 00:03:01]} 5. exd4 {[%emt
00:00:02] [%clk 00:03:05]} a6 {[%clk 00:03:02]} 6. Nf3 {[%emt 00:00:01] [%clk
00:03:06]} Nc6 {[%emt 00:00:02] [%clk 00:03:03]} 7. Ne5 {[%emt 00:00:01] [%clk
00:03:06]} e6 {[%emt 00:00:01] [%clk 00:03:04]} 8. g4 {[%emt 00:00:01] [%clk
00:03:07]} Bd6 {[%emt 00:00:08] [%clk 00:02:59]} 9. g5 {[%emt 00:00:09] [%clk
00:03:00]} Bxe5 {[%emt 00:00:04] [%clk 00:02:58]} 10. dxe5 {[%emt 00:00:05]
[%clk 00:02:56]} Nd7 {[%emt 00:00:04] [%clk 00:02:56]} 11. Qe2 {[%emt 00:00:19]
[%clk 00:02:38]} d4 {[%emt 00:00:19] [%clk 00:02:39]} 12. Ne4 {[%emt 00:00:10]
[%clk 00:02:30]} Ndxe5 {[%emt 00:00:05] [%clk 00:02:36]} 13. O-O-O {[%emt
00:00:03] [%clk 00:02:29]} O-O {[%emt 00:00:02] [%clk 00:02:35]} 14. Bg2 {[%emt
00:00:21] [%clk 00:02:11]} d3 {[%emt 00:00:01] [%clk 00:02:36]} 15. cxd3 {[%emt
00:00:05] [%clk 00:02:08]} Ng6 {[%emt 00:00:17] [%clk 00:02:21]} 16. Bd6 {[%emt
00:00:13] [%clk 00:01:57]} Re8 {[%emt 00:00:01] [%clk 00:02:22]} 17. Kb1 {[%emt
00:00:15] [%clk 00:01:44]} e5 {[%emt 00:00:02] [%clk 00:02:22]} 18. Qe3 {[%emt
00:00:07] [%clk 00:01:39]} Bg4 {[%emt 00:00:05] [%clk 00:02:20]} 19. Rc1 {[%emt
00:00:05] [%clk 00:01:35]} Nf4 {[%emt 00:00:07] [%clk 00:02:15]} 20. Bf1 {[%emt
00:00:13] [%clk 00:01:25]} Bf5 {[%emt 00:00:03] [%clk 00:02:13]} 21. Bc5 {[%emt
00:00:13] [%clk 00:01:14]} Bxe4 {[%emt 00:00:10] [%clk 00:02:05]} 22. dxe4
{[%emt 00:00:03] [%clk 00:01:14]} Qxg5 {[%emt 00:00:04] [%clk 00:02:03]} 23. Bc4
{[%emt 00:00:02] [%clk 00:01:14]} Rad8 {[%emt 00:00:10] [%clk 00:01:54]} 24.
Rhg1 {[%emt 00:00:04] [%clk 00:01:12]} Qf6 {[%emt 00:00:01] [%clk 00:01:56]} 25.
Rg3 {[%emt 00:00:11] [%clk 00:01:03]} Na5 {[%emt 00:00:17] [%clk 00:01:41]} 26.
Bf1 {[%emt 00:00:05] [%clk 00:00:59]} Rc8 {[%emt 00:00:06] [%clk 00:01:37]} 27.
Bb4 {[%emt 00:00:14] [%clk 00:00:47]} Rxc1+ {[%emt 00:00:03] [%clk 00:01:37]}
28. Kxc1 {[%emt 00:00:05] [%clk 00:00:43]} Nc6 {[%emt 00:00:05] [%clk 00:01:35]}
29. Bc3 {[%clk 00:00:44]} Rd8 {[%emt 00:00:04] [%clk 00:01:33]} 30. Bc4 {[%emt
00:00:06] [%clk 00:00:40]} b5 {[%emt 00:00:01] [%clk 00:01:34]} 31. Bd5 {[%emt
00:00:01] [%clk 00:00:40]} Nxd5 {[%emt 00:00:13] [%clk 00:01:23]} 32. exd5
{[%emt 00:00:02] [%clk 00:00:41]} Rxd5 {[%emt 00:00:03] [%clk 00:01:23]} 33. Qe4
{[%emt 00:00:03] [%clk 00:00:38]} Qe6 {[%emt 00:00:25] [%clk 00:01:01]} 34. a3
{[%emt 00:00:05] [%clk 00:00:35]} a5 {[%emt 00:00:05] [%clk 00:00:58]} 35. b4
{[%emt 00:00:17] [%clk 00:00:21]} axb4 {[%clk 00:00:59]} 36. axb4 {[%emt
00:00:01] [%clk 00:00:22]} f5 {[%emt 00:00:10] [%clk 00:00:51]} 37. Qg2 {[%emt
00:00:09] [%clk 00:00:14]} g6 {[%emt 00:00:05] [%clk 00:00:48]} 38. h4 {[%emt
00:00:02] [%clk 00:00:14]} Nd4 {[%emt 00:00:04] [%clk 00:00:46]} 39. Kb2 {[%emt
00:00:08] [%clk 00:00:08]} Ne2 {[%emt 00:00:04] [%clk 00:00:44]} 40. Re3 {[%emt
00:00:01] [%clk 00:00:09]} Nxc3 {[%emt 00:00:04] [%clk 00:00:42]} 41. Rxc3
{[%clk 00:00:10]} e4 {[%emt 00:00:03] [%clk 00:00:40]} 42. Qg5 {[%emt 00:00:03]
[%clk 00:00:10]} Qe5 {[%emt 00:00:06] [%clk 00:00:36]} 43. Kc2 {[%clk 00:00:11]}
Qd4 {[%emt 00:00:10] [%clk 00:00:28]} 44. Rc8+ {[%emt 00:00:09] [%clk 00:00:04]}
Kf7 {[%clk 00:00:30]} 45. Rc7+ {[%emt 00:00:01] [%clk 00:00:05]} Rd7 {[%clk
00:00:31]} 46. Rxd7+ {[%emt 00:00:03] [%clk 00:00:04]} Qxd7 {[%emt 00:00:01]
[%clk 00:00:32]} 47. Qh6 {[%clk 00:00:06]} Qd3+ {[%emt 00:00:03] [%clk
00:00:31]} 0-1

[Site "Europe Echecs"]

[Event "Championnat d'Europe de Blitz"]
[Date "2024.12.09"]
[White "Van Foreest, Lucas"]
[Black "Gatineau, Yovann"]
[WhiteElo "2520"]
[BlackElo "2363"]
[Round "3.17"]
[Result "1-0"]
[TimeControl "180+2"]

1. e4 {[%clk 00:03:03]} e6 {[%emt 00:00:01] [%clk 00:03:04]} 2. d4 {[%emt
00:00:01] [%clk 00:03:04]} d5 {[%clk 00:03:05]} 3. Nd2 {[%emt 00:00:03] [%clk
00:03:05]} c5 {[%clk 00:03:06]} 4. exd5 {[%clk 00:03:06]} exd5 {[%clk 00:03:07]}
5. Ngf3 {[%emt 00:00:02] [%clk 00:03:06]} cxd4 {[%emt 00:00:01] [%clk 00:03:08]}
6. Bb5+ {[%emt 00:00:02] [%clk 00:03:06]} Nc6 {[%emt 00:00:07] [%clk 00:03:03]}
7. O-O {[%emt 00:00:03] [%clk 00:03:05]} Nf6 {[%emt 00:00:02] [%clk 00:03:03]}
8. Nxd4 {[%emt 00:00:09] [%clk 00:02:58]} Bd7 {[%emt 00:00:01] [%clk 00:03:04]}
9. N2f3 {[%emt 00:00:05] [%clk 00:02:54]} Be7 {[%emt 00:00:02] [%clk 00:03:04]}
10. c3 {[%emt 00:00:02] [%clk 00:02:55]} O-O {[%emt 00:00:02] [%clk 00:03:04]}
11. h3 {[%clk 00:02:55]} Re8 {[%emt 00:00:04] [%clk 00:03:03]} 12. Bd3 {[%emt
00:00:03] [%clk 00:02:54]} h6 {[%emt 00:00:06] [%clk 00:02:59]} 13. Nxc6 {[%emt
00:00:06] [%clk 00:02:50]} bxc6 {[%emt 00:00:04] [%clk 00:02:57]} 14. Ne5 {[%emt
00:00:02] [%clk 00:02:50]} Bd6 {[%emt 00:00:11] [%clk 00:02:48]} 15. Nxd7 {[%emt
00:00:02] [%clk 00:02:50]} Qxd7 {[%emt 00:00:01] [%clk 00:02:49]} 16. Qf3 {[%emt
00:00:02] [%clk 00:02:50]} Ne4 {[%emt 00:00:14] [%clk 00:02:37]} 17. Be3 {[%emt
00:00:09] [%clk 00:02:43]} Re6 {[%emt 00:00:07] [%clk 00:02:33]} 18. Rad1 {[%emt
00:00:07] [%clk 00:02:37]} Rae8 {[%emt 00:00:03] [%clk 00:02:32]} 19. c4 {[%emt
00:00:32] [%clk 00:02:07]} Rf6 {[%emt 00:00:30] [%clk 00:02:03]} 20. Qg4 {[%emt
00:00:17] [%clk 00:01:52]} Qb7 {[%emt 00:00:11] [%clk 00:01:55]} 21. Bd4 {[%emt
00:00:20] [%clk 00:01:34]} Rg6 {[%emt 00:00:16] [%clk 00:01:41]} 22. Qh4 {[%emt
00:00:10] [%clk 00:01:26]} Be7 {[%emt 00:00:45] [%clk 00:00:58]} 23. Qh5 {[%emt
00:00:01] [%clk 00:01:26]} Bf6 {[%emt 00:00:07] [%clk 00:00:53]} 24. Bxf6 {[%emt
00:00:09] [%clk 00:01:19]} Rxf6 {[%emt 00:00:05] [%clk 00:00:50]} 25. cxd5
{[%emt 00:00:14] [%clk 00:01:07]} cxd5 {[%emt 00:00:02] [%clk 00:00:51]} 26.
Bxe4 {[%emt 00:00:23] [%clk 00:00:46]} dxe4 {[%clk 00:00:52]} 27. b3 {[%clk
00:00:48]} Qb6 {[%emt 00:00:15] [%clk 00:00:39]} 28. Qd5 {[%emt 00:00:02] [%clk
00:00:48]} e3 {[%emt 00:00:11] [%clk 00:00:30]} 29. fxe3 {[%emt 00:00:01] [%clk
00:00:49]} Qxe3+ {[%emt 00:00:01] [%clk 00:00:31]} 30. Kh1 {[%clk 00:00:50]}
Rxf1+ {[%emt 00:00:17] [%clk 00:00:16]} 31. Rxf1 {[%emt 00:00:01] [%clk
00:00:51]} Qe6 {[%emt 00:00:01] [%clk 00:00:16]} 32. Qc5 {[%emt 00:00:08] [%clk
00:00:45]} a6 {[%emt 00:00:04] [%clk 00:00:15]} 33. Qd4 {[%emt 00:00:04] [%clk
00:00:42]} Rc8 {[%emt 00:00:04] [%clk 00:00:13]} 34. Qd3 {[%emt 00:00:05] [%clk
00:00:39]} g6 {[%emt 00:00:03] [%clk 00:00:12]} 35. a3 {[%emt 00:00:02] [%clk
00:00:40]} Rc5 {[%emt 00:00:05] [%clk 00:00:09]} 36. b4 {[%emt 00:00:01] [%clk
00:00:41]} Rd5 {[%emt 00:00:03] [%clk 00:00:08]} 37. Qc3 {[%clk 00:00:42]} h5
{[%emt 00:00:04] [%clk 00:00:07]} 38. Re1 {[%emt 00:00:01] [%clk 00:00:43]} Qd7
{[%emt 00:00:02] [%clk 00:00:07]} 39. Qf3 {[%emt 00:00:04] [%clk 00:00:41]} Rf5
{[%emt 00:00:02] [%clk 00:00:07]} 40. Qa8+ {[%emt 00:00:02] [%clk 00:00:41]} Kg7
{[%clk 00:00:08]} 41. Qxa6 {[%emt 00:00:02] [%clk 00:00:41]} Qd2 {[%emt
00:00:04] [%clk 00:00:06]} 42. Qe2 {[%emt 00:00:02] [%clk 00:00:41]} Qc3 {[%emt
00:00:01] [%clk 00:00:07]} 43. b5 {[%emt 00:00:23] [%clk 00:00:20]} Qxa3 {[%clk
00:00:08]} 44. Rb1 {[%clk 00:00:22]} Qd6 {[%emt 00:00:06] [%clk 00:00:04]} 45.
b6 {[%emt 00:00:01] [%clk 00:00:22]} Re5 {[%emt 00:00:03] [%clk 00:00:03]} 46.
Qb2 {[%emt 00:00:01] [%clk 00:00:23]} Qb8 {[%emt 00:00:02] [%clk 00:00:03]} 47.
b7 {[%emt 00:00:01] [%clk 00:00:24]} f6 {[%clk 00:00:05]} 48. Qc3 {[%emt
00:00:05]} Re8 {[%clk 00:00:04]} 49. Qc6 {[%clk 00:00:24]} Qe5 {[%emt 00:00:02]
[%clk 00:00:04]} 50. Qxe8 {[%emt 00:00:02] [%clk 00:00:24]} 1-0

[Site "Europe Echecs"]

[Event "Championnat d'Europe de Blitz"]
[Date "2024.12.09"]
[White "Asllani, Muhamet"]
[Black "Fridman, Daniel"]
[WhiteElo "2112"]
[BlackElo "2571"]
[Round "3.18"]
[Result "0-1"]
[TimeControl "180+2"]

1. d4 {[%emt 00:00:02] [%clk 00:03:02]} d5 {[%emt 00:00:01] [%clk 00:03:03]} 2.
Nf3 {[%emt 00:00:04] [%clk 00:03:02]} Nf6 {[%clk 00:03:04]} 3. c4 {[%clk
00:03:03]} e6 {[%emt 00:00:01] [%clk 00:03:05]} 4. Nc3 {[%clk 00:03:04]} c6
{[%clk 00:03:07]} 5. Bg5 {[%emt 00:00:01] [%clk 00:03:04]} dxc4 {[%emt 00:00:02]
[%clk 00:03:07]} 6. a4 {[%emt 00:00:05] [%clk 00:03:01]} b5 {[%emt 00:00:02]
[%clk 00:03:07]} 7. axb5 {[%emt 00:00:27] [%clk 00:02:36]} cxb5 {[%emt 00:00:02]
[%clk 00:03:08]} 8. Bxf6 {[%emt 00:00:07] [%clk 00:02:30]} gxf6 {[%emt 00:00:04]
[%clk 00:03:07]} 9. Nxb5 {[%emt 00:00:05] [%clk 00:02:27]} Qb6 {[%emt 00:00:01]
[%clk 00:03:07]} 10. Nc3 {[%emt 00:00:43] [%clk 00:01:46]} Qxb2 {[%emt 00:00:08]
[%clk 00:03:02]} 11. Rc1 {[%emt 00:00:14] [%clk 00:01:34]} Bb4 {[%emt 00:00:06]
[%clk 00:02:57]} 12. Qc2 {[%emt 00:00:24] [%clk 00:01:12]} Qxc2 {[%emt 00:00:12]
[%clk 00:02:47]} 13. Rxc2 {[%emt 00:00:02] [%clk 00:01:13]} Nd7 {[%emt 00:00:18]
[%clk 00:02:30]} 14. e3 {[%emt 00:00:04] [%clk 00:01:10]} Nb6 {[%emt 00:00:02]
[%clk 00:02:31]} 15. Nd2 {[%emt 00:00:05] [%clk 00:01:07]} Bb7 {[%emt 00:00:05]
[%clk 00:02:29]} 16. f3 {[%emt 00:00:28] [%clk 00:00:41]} Nd5 {[%emt 00:00:07]
[%clk 00:02:24]} 17. Nxd5 {[%emt 00:00:08] [%clk 00:00:34]} exd5 {[%emt
00:00:02] [%clk 00:02:24]} 18. Kf2 {[%emt 00:00:06] [%clk 00:00:30]} a5 {[%emt
00:00:07] [%clk 00:02:19]} 19. e4 {[%emt 00:00:12] [%clk 00:00:19]} c3 {[%emt
00:00:07] [%clk 00:02:14]} 20. Bb5+ {[%emt 00:00:05] [%clk 00:00:17]} Kf8 {[%emt
00:00:09] [%clk 00:02:07]} 21. Nb1 {[%emt 00:00:03] [%clk 00:00:16]} dxe4 {[%emt
00:00:06] [%clk 00:02:03]} 22. Nxc3 {[%emt 00:00:02] [%clk 00:00:16]} f5 {[%emt
00:00:31] [%clk 00:01:34]} 23. Rd1 {[%emt 00:00:08] [%clk 00:00:10]} Rc8 {[%emt
00:00:07] [%clk 00:01:29]} 24. Rdc1 {[%clk 00:00:11]} Kg7 {[%emt 00:00:06] [%clk
00:01:25]} 25. Na2 {[%emt 00:00:04] [%clk 00:00:10]} Bd6 {[%emt 00:00:12] [%clk
00:01:15]} 26. Bd7 {[%emt 00:00:08] [%clk 00:00:05]} Rxc2+ {[%emt 00:00:07]
[%clk 00:01:09]} 27. Rxc2 {[%clk 00:00:06]} Kf6 {[%emt 00:00:11] [%clk
00:01:01]} 28. Rb2 {[%clk 00:00:08]} Rb8 {[%emt 00:00:06] [%clk 00:00:57]} 29.
Nc3 {[%emt 00:00:03] [%clk 00:00:08]} Bb4 {[%emt 00:00:03] [%clk 00:00:56]} 30.
Na2 {[%emt 00:00:03] [%clk 00:00:07]} Bd5 {[%emt 00:00:01] [%clk 00:00:57]} 31.
Ba4 {[%emt 00:00:02] [%clk 00:00:06]} Be1+ {[%emt 00:00:03] [%clk 00:00:56]} 0-1

[Site "Europe Echecs"]